[Event "SixDays Budapest March GM-B 2023"]
[Site "Budapest"]
[Date "2023.03.26"]
[Round "4.2"]
[White "Joshua, A P"]
[Black "Pribelszky, Bence"]
[Result "0-1"]
[ECO "B48"]
[WhiteElo "2300"]
[BlackElo "2380"]
[Annotator "TA"]
[PlyCount "132"]
[EventDate "2023.03.24"]
[EventType "tourn"]
[EventCountry "HUN"]
[SourceTitle "playchess.com"]
[Source "ChessBase"]
[SourceQuality "1"]
[TimeControl "5400+30"]

{[%evp 11,132,29,29,0,0,5,8,-27,49,37,41,35,40,8,8,0,6,0,0,0,14,0,31,6,51,-41,29,0,0,0,5,0,0,-128,-101,-84,-95,-103,-95,-164,-183,-244,-179,-182,-188,-197,-150,-245,-254,-249,-249,-354,-239,-396,-384,-375,-380,-455,-445,-422,-429,-486,-489,-465,-413,-472,-474,-458,-456,-582,-483,-620,-616,-829,-544,-558,-539,-606,-592,-586,-577,-669,-669,-640,-635,-669,-670,-598,-593,-696,-634,-636,-507,-675,-664,-931,-918,-777,-541,-483,-329,-328,-298,-348,-337,-409,-403,-394,-393,-680,-1292,-1239,-1091,-1167,-1158,-915,-1018,-29986,-29987,-29996,-29997,-29998,-29999]} 1. e4 {[%emt 0:01:29]} c5 {[%emt 0:00:36]} 2. Nf3 {[%emt 0:00:32]} e6 {[%emt 0:00:08]} 3. d4 {[%emt 0:00:17]} cxd4 {[%emt 0:00:04]} 4. Nxd4 {[%emt 0:00:09]} Nc6 {[%emt 0:00:05]} 5. Nc3 {[%emt 0:00:29]} Qc7 {[%emt 0:00:05]} 6. Be3 {[%emt 0:00:43]} a6 {[%emt 0:00:06]} 7. g4 {[%emt 0:01:00] 7.g4 is the recent fashion. B48: Sicilian: Taimanov: 5 Nc3 Qc7 6 Be3 a6 without Be2.} b5 {[%emt 0:03:48]} 8. Nxc6 {[%emt 0:01:12]} Qxc6 {[%emt 0:01:19]} 9. Qd2 {[%emt 0:01:29] The position is equal.} Bc5 {[%emt 0:28:41] [#]} (9... b4 $11 10. Ne2 Qxe4) 10. Bg2 $146 {[%emt 0:11:44]} ({Predecessor:} 10. Bxc5 Qxc5 11. O-O-O Ne7 12. f4 O-O 13. Bg2 Ra7 14. e5 Bb7 15. Bxb7 Rxb7 16. Kb1 {1-0 Predke,A (2690)-Perunovic,M (2567) FIDE World Cup Europe Hybrid Qual 2021 (2.1)}) 10... Bxe3 {[%emt 0:14:06]} 11. Qxe3 {[%emt 0:00:27]} Ne7 {[%emt 0:00:04]} 12. Rg1 {[%emt 0:03:09]} (12. Qd4 $5 {[%cal Rd4g7]}) 12... Bb7 {[%emt 0:02:31]} 13. e5 {[%emt 0:13:30]} Qc7 {[%emt 0:00:07]} 14. Bxb7 {[%emt 0:00:44]} Qxb7 {[%emt 0:00:03]} 15. Ne4 {[%emt 0:04:33]} O-O {[%emt 0:00:06]} 16. O-O-O {[%emt 0:01:42][%cal Oe4f6] Strongly threatening Nf6+!} Nd5 {[%emt 0:02:44] Wards off Nf6+} 17. Qd4 {[%emt 0:06:42]} Qa7 {[%emt 0:11:22]} (17... Qc7 {simplifies} 18. Rg3 f6 19. exf6 Nxf6 20. Nxf6+ Rxf6 21. Qxd7 Qxd7 22. Rxd7 Rxf2 23. Rc3 Rxh2 24. Rcc7 g6) 18. Qd2 {[%emt 0:03:32]} (18. g5 $14) 18... Rac8 {[%emt 0:02:27]} (18... Qc7 $15) 19. Nd6 {[%emt 0:04:11]} (19. g5 {simplifies} Ne7 20. Qxd7 Qxd7 21. Rxd7 Ng6 22. Rd6) 19... Rc6 {[%emt 0:01:09]} 20. g5 {[%emt 0:05:14]} b4 {[%emt 0:12:28]} 21. Rg3 {[%emt 0:05:51]} Qc5 {[%emt 0:03:52][%cal Od5c3]} 22. Qd3 {[%emt 0:19:24] Wards off Nc3} (22. Re1 $11) 22... Nf4 {[%emt 0:06:07]} ({Stronger than} 22... Qxf2 23. Kb1) 23. Qe4 {[%emt 0:00:45]} Qxf2 {[%emt 0:00:38] [#] Threatens to win with ...Ne2+.} 24. Kb1 {[%emt 0:01:34]} Ng6 {[%emt 0:03:39][%cal Og6e5]} (24... Qxh2 $2 25. Rh1 Rxd6 26. Rgg1 $18) 25. b3 {[%emt 0:06:43]} (25. Rg2 $17 Qb6 26. Nc4) 25... Qxh2 {[%emt 0:01:33]} 26. Rdg1 {[%emt 0:01:04]} (26. Re3 {is a better defense.}) 26... Rc5 {[%emt 0:03:37]} 27. Nc4 {[%emt 0:00:45]} Qf2 {[%emt 0:00:58]} 28. Rg4 {[%emt 0:01:27]} Qf5 {[%emt 0:00:54]} (28... Rd5 $19 29. Re1 Qf5) 29. Qe2 {[%emt 0:00:41]} (29. Qd4 $17 {keeps fighting.} Rd5 30. Qe3) 29... Nxe5 $19 {[%emt 0:00:37]} 30. Nxe5 {[%emt 0:01:19]} Rxe5 {[%emt 0:00:52]} (30... Qxe5 $2 {too greedy.} 31. Qxe5 Rxe5 32. Rxb4) 31. Qh2 {[%emt 0:01:10]} (31. Qxa6 $142 Re1+ {[%mdl 64] Deflection} 32. Rxe1 Qxg4 33. Qb5) 31... Rc5 {[%emt 0:00:42]} 32. R4g2 $2 {[%emt 0:01:32]} (32. Rxb4 {was forced.} Rfc8 33. Rg2) 32... Rfc8 {[%emt 0:00:16]} 33. Rf2 {[%emt 0:00:14]} Qg6 {[%emt 0:00:15]} 34. Rfg2 {[%emt 0:00:52]} d5 {[%emt 0:00:37][%cal Bd7d5,Bd5d4][%mdl 32]} 35. Rd1 {[%emt 0:00:21] [#]} e5 $1 {[%emt 0:00:38]} 36. Rdd2 {[%emt 0:00:09]} (36. Re1 e4) 36... d4 {[%emt 0:00:13][%cal Od4d3]} 37. Qh3 {[%emt 0:00:29]} Qe6 {[%emt 0:00:57]} 38. Qh4 {[%emt 0:00:47]} Rc3 {[%emt 0:00:06]} 39. Rge2 {[%emt 0:00:59]} Qf5 {[%emt 0:00:23]} 40. Rf2 {[%emt 0:00:00]} Qg6 {[%emt 0:00:00]} 41. Qg4 {[%emt 0:00:50]} h5 {[%emt 0:01:22]} 42. Qd7 {[%emt 0:00:18]} R3c7 {[%emt 0:00:22]} ({Weaker is} 42... Qxg5 43. Qxf7+ Kh7 44. Rf5 $11) 43. Qd5 {[%emt 0:00:16]} Qxg5 {[%emt 0:00:44]} 44. Rg2 {[%emt 0:00:21]} Qf5 {[%emt 0:00:30]} 45. Rdf2 {[%emt 0:00:11]} Qe6 {[%emt 0:00:05]} 46. Qf3 {[%emt 0:00:15]} g6 {[%emt 0:00:41]} 47. Qe4 {[%emt 0:01:14]} Kg7 {[%emt 0:00:34]} 48. Rg5 {[%emt 0:00:07]} Re7 {[%emt 0:00:22]} 49. Rfg2 {[%emt 0:00:32]} Qc6 {[%emt 0:00:27]} 50. Qh4 {[%emt 0:00:24]} Qf6 {[%emt 0:00:58][%cal Od4d3] ...d3! would be deadly.} 51. Rf2 {[%emt 0:00:19]} Qe6 {[%emt 0:00:17]} 52. Rfg2 {[%emt 0:00:04]} Rh8 {[%emt 0:00:29]} 53. Rxh5 {[%emt 0:00:52]} Rxh5 {[%emt 0:00:06]} 54. Qxh5 {[%emt 0:00:07][%mdl 4096] Endgame KQR-KQR} Qd5 {[%emt 0:00:54]} 55. Qg5 {[%emt 0:00:10]} Kf8 {[%emt 0:00:44]} 56. Rh2 {[%emt 0:00:12] Qf6 is the strong threat.} Ke8 {[%emt 0:00:08]} 57. Qg4 {[%emt 0:00:16][%cal Rh2h8]} Re6 {[%emt 0:00:47] Hoping for ...e4.} 58. Qg5 {[%emt 0:00:24] Black must now prevent Rh8+.} Kd7 {[%emt 0:00:14]} 59. Rh8 {[%emt 0:02:20] And now Rd8+ would win.} Kc7 {[%emt 0:00:48] Dodges Rd8} 60. Qh6 $2 {[%emt 0:00:09]} (60. Rf8 Qd7 61. Qh4) 60... d3 {[%emt 0:00:13] ( -> ...dxc2+)} 61. Qd2 {[%emt 0:01:57]} dxc2+ {[%emt 0:00:20]} 62. Qxc2+ {[%emt 0:00:06]} Rc6 {[%emt 0:00:03]} 63. Qe2 {[%emt 0:00:07]} Rc3 {[%emt 0:01:13]} 64. Kb2 {[%emt 0:01:07]} Qd4 {[%emt 0:00:02] Black mates.} 65. Rh4 {[%emt 0:00:33]} Rxb3+ {[%emt 0:00:45]} 66. Kxb3 {[%emt 0:00:07]} Qc3+ {[%emt 0:00:03] Weighted Error Value: White=0.54/Black=0.25 (precise)} 0-1

[Event "SixDays Budapest March GM-B 2023"]
[Site "Budapest"]
[Date "2023.03.26"]
[Round "4.3"]
[White "Tran, Thanh Tu"]
[Black "Varga, Csaba Zoltan"]
[Result "1/2-1/2"]
[ECO "D00"]
[WhiteElo "2402"]
[BlackElo "2278"]
[Annotator "TA"]
[PlyCount "70"]
[EventDate "2023.03.24"]
[EventType "tourn"]
[EventCountry "HUN"]
[SourceTitle "playchess.com"]
[Source "ChessBase"]
[SourceQuality "1"]
[TimeControl "5400+30"]

{[%evp 9,70,14,27,20,15,18,34,16,36,34,52,53,88,35,110,89,128,120,109,128,136,131,148,142,126,126,175,175,173,173,171,119,156,97,129,85,295,263,340,280,1095,1095,1079,1075,29991,1293,29985,29986,29986,29987,29987,0,0,0,0,0,0,0,0,0,0,0,0]} 1. d4 {[%emt 0:00:42]} d5 {[%emt 0:00:35]} 2. Nc3 {[%emt 0:00:23]} Nf6 {[%emt 0:00:13]} 3. Bf4 {[%emt 0:00:37]} c6 {[%emt 0:06:47]} 4. e3 {[%emt 0:02:04]} Qb6 {[%emt 0:02:24]} 5. Rb1 {[%emt 0:01:55]} g6 {[%emt 0:01:54]} 6. h3 {[%emt 0:00:58] D00: 1 d4 d5: Unusual lines.} Bg7 {[%emt 0:00:11]} 7. Nf3 {[%emt 0:00:11]} O-O {[%emt 0:00:07] [#]} 8. b4 $146 {[%emt 0:03:24] White is slightly better.} ({Predecessor:} 8. Be2 c5 9. O-O cxd4 10. exd4 a6 11. Na4 Qd8 12. Nc5 Nbd7 13. Nd3 Ne4 14. c3 {1-0 Niemann,H (2680)-Jumabayev,R (2536) Dubai bin Rashid Cup Blitz 2021 (1)}) 8... Bf5 {[%emt 0:01:37]} 9. Bd3 {[%emt 0:05:54]} Bxd3 {[%emt 0:00:08]} 10. cxd3 {[%emt 0:00:05]} a5 {[%emt 0:02:53] [#]} 11. Qa4 {[%emt 0:12:12]} (11. b5 $1 $16) 11... Qd8 {[%emt 0:11:27]} (11... Nbd7 $14) 12. b5 $16 {[%emt 0:01:51]} Nbd7 {[%emt 0:01:51]} 13. bxc6 {[%emt 0:02:04]} bxc6 {[%emt 0:00:18]} 14. O-O {[%emt 0:00:21]} (14. Qxc6 $2 Rc8 15. Qb5 Rxc3 $17) 14... c5 {[%emt 0:02:45]} 15. Rb7 {[%emt 0:05:09] White is much more active.} cxd4 {[%emt 0:00:48]} 16. exd4 {[%emt 0:00:06]} (16. Qxd4 Ne4 17. Ne5 (17. Qxd5 Nec5 $15) 17... Ndc5 18. dxe4 Nxb7 $15) 16... Qc8 {[%emt 0:06:08]} 17. Rc7 {[%emt 0:00:12]} Qa6 {[%emt 0:00:08]} (17... Qd8 $16 {keeps fighting.}) 18. Rxd7 $18 {[%emt 0:00:47]} Nxd7 {[%emt 0:00:08]} 19. Qxd7 {[%emt 0:00:04]} e6 {[%emt 0:01:05]} 20. Ne5 {[%emt 0:06:20]} (20. a4 $18) 20... a4 {[%emt 0:06:54][%cal Og6g5]} 21. Rb1 {[%emt 0:08:34]} (21. Nb5 $142) 21... Qc8 {[%emt 0:05:06] [#] Inhibits Nc6. Threatens to win with ...Bxe5.} 22. Nb5 {[%emt 0:07:19] aiming for Nd6.} (22. Nxa4 $2 Bxe5 23. Qxc8 Rfxc8 24. dxe5 Rxa4 $19) 22... a3 $2 {[%emt 0:04:30]} (22... Bxe5 $16 23. Qxc8 Rfxc8 24. Bxe5 (24. dxe5 Rab8 $15) 24... Rc6) 23. Qe7 {[%emt 0:19:34]} Qc2 {[%emt 0:06:49]} 24. Rc1 {[%emt 0:00:16]} (24. Nxa3 Rxa3 25. Rc1 Qxa2 26. Nxf7 Rxf7 $11) 24... Qxa2 {[%emt 0:00:46]} (24... Qb2) 25. Nd6 {[%emt 0:00:07]} Qb2 {[%emt 0:10:41]} 26. Nexf7 {[%emt 0:00:51]} a2 {[%emt 0:06:16]} 27. Qxe6 {[%emt 0:04:05]} (27. Nh6+ $142 Bxh6 28. Qxe6+ Kh8 29. Be5+ Bg7 30. Bxg7+ Kxg7 31. Rc7+ {[%mdl 64] Skewer} Rf7 32. Qxf7+ Kh6 33. Qf4+ g5 34. Qf6+ {[%mdl 64] Deflection} Kh5 35. Rxh7#) 27... h6 {[%emt 0:05:07]} 28. Rc7 {[%emt 0:07:07]} ({Weaker is} 28. Nxh6+ Kh7 29. Nhf7 Rxf7 30. Nxf7 Qxc1+ 31. Bxc1 a1=Q 32. Ng5+ Kh8 $16) 28... a1=Q+ {[%emt 0:03:47]} 29. Kh2 {[%emt 0:00:05]} Qxd4 {[%emt 0:01:18]} 30. Be5 $2 {[%emt 0:00:07]} (30. Ne5+ {mates} Kh8 31. Nxg6+ Kh7 32. Be5 (32. Nxf8+ Rxf8 33. Qxh6+ Kg8 $11) 32... Qda7 33. Nb7 (33. Rxa7 Qxa7 34. Nxf8+ Rxf8 $16) 33... Qg1+ {[%mdl 64] Decoy} 34. Kxg1 Qxf2+ 35. Kh2) 30... Qxf2 $1 $11 {[%emt 0:02:35][%csl Gf2][%cal Ra1g1] The position is equal.} 31. Nxh6+ {[%emt 0:08:02]} Kh8 {[%emt 0:00:11][%csl Gf2][%cal Ra1g1]} 32. Bxg7+ {[%emt 0:00:14]} Qxg7 {[%emt 0:00:08]} 33. Nhf7+ {[%emt 0:00:29]} Kg8 {[%emt 0:07:17]} 34. Ng5+ {[%emt 0:02:44]} Kh8 {[%emt 0:00:14] ( -> ...Qf4+)} 35. Ngf7+ {[%emt 0:00:05] A dynamic duo of knights.} (35. Rxg7 {is a self mate.} Qf4+ 36. g3 Qf2+ 37. Kh1 Ra1+) 35... Kh7 {[%emt 0:00:21] Blacks defense is rewarded with a draw. An exciting game.   Weighted Error Value: White=0.49/Black=0.60} 1/2-1/2

[Event "SixDays Budapest March GM-B 2023"]
[Site "Budapest"]
[Date "2023.03.26"]
[Round "4.4"]
[White "Priasmoro, Novendra"]
[Black "Moksh Amit Doshi"]
[Result "1-0"]
[ECO "C91"]
[WhiteElo "2521"]
[BlackElo "2388"]
[Annotator "TA"]
[PlyCount "91"]
[EventDate "2023.03.24"]
[EventType "tourn"]
[EventCountry "HUN"]
[SourceTitle "playchess.com"]
[Source "ChessBase"]
[SourceQuality "1"]
[TimeControl "5400+30"]

{[%evp 25,91,0,6,-6,0,-7,-1,-24,-16,-20,-14,-31,-29,-50,-41,-41,-33,-33,-40,-37,-27,-39,-30,-37,-19,-29,0,-12,0,0,0,0,47,43,45,28,25,32,73,70,184,197,256,275,284,284,265,202,350,241,231,207,236,214,689,689,868,708,700,611,556,515,1223,1190,29990,29991,29991,29992]} 1. e4 {[%emt 0:00:36]} e5 {[%emt 0:01:33]} 2. Nf3 {[%emt 0:00:19]} Nc6 {[%emt 0:00:09]} 3. Bb5 {[%emt 0:00:49][%cal Bf1b5,Bb5a4,Ba4b3][%mdl 32]} a6 {[%emt 0:00:16]} 4. Ba4 {[%emt 0:00:12]} Nf6 {[%emt 0:00:07]} 5. O-O {[%emt 0:00:10]} Be7 {[%emt 0:00:07]} 6. Re1 {[%emt 0:00:24]} b5 {[%emt 0:00:09]} 7. Bb3 {[%emt 0:00:11]} O-O {[%emt 0:00:09]} 8. d4 {[%emt 0:01:49]} d6 {[%emt 0:00:08]} 9. c3 {[%emt 0:00:05]} Bg4 {[%emt 0:00:06]} 10. d5 {[%emt 0:00:07]} Na5 {[%emt 0:00:06]} 11. Bc2 {[%emt 0:00:06]} c6 {[%emt 0:00:09]} 12. h3 {[%emt 0:01:18]} Bc8 {[%emt 0:00:53]} 13. dxc6 {[%emt 0:12:44]} Qc7 {[%emt 0:00:44]} 14. Bg5 {[%emt 0:00:16] C91: Closed Ruy Lopez: 7...d6 8 c3 0-0 9 d4.} Nc4 {[%emt 0:05:35]} 15. b3 {[%emt 0:09:50]} Nb6 {[%emt 0:00:30]} 16. Qd3 {[%emt 0:01:13] The position is equal.} Qxc6 {[%emt 0:02:14]} 17. Nbd2 {[%emt 0:00:08]} Be6 {[%emt 0:06:23]} 18. Rac1 {[%emt 0:00:37][%cal Of3d4]} (18. Nd4 {seems wilder.} exd4 19. e5 Qxc3 20. exf6 Qxd3 21. Bxd3 gxf6 22. Bh4) 18... Rfc8 {[%emt 0:07:18] [#]} 19. Qe3 $146 {[%emt 0:04:43]} ({Predecessor:} 19. Bb1 a5 20. Qe2 Nbd7 21. Bd3 Rab8 22. c4 b4 23. Nf1 h6 24. Bd2 Nc5 25. Bc2 {0-1 Maynard,F (2205)-Godena,M (2430) Olympiad-28 Thessaloniki 1988 (5)}) 19... h6 {[%emt 0:06:48]} 20. Bxf6 {[%emt 0:04:02]} Bxf6 {[%emt 0:00:12]} 21. Bd3 {[%emt 0:11:20]} Nd7 {[%emt 0:02:38]} 22. c4 {[%emt 0:02:37]} b4 {[%emt 0:03:40]} 23. Bc2 {[%emt 0:03:13]} a5 {[%emt 0:00:35][%cal Oa5a4]} 24. Nf1 $1 {[%emt 0:00:30]} Bd8 {[%emt 0:05:20][%cal Oa5a4]} (24... a4 $5) 25. Qd2 {[%emt 0:02:57]} Bb6 {[%emt 0:00:53]} 26. Rcd1 {[%emt 0:01:23]} Ra6 {[%emt 0:03:19]} 27. Ne3 {[%emt 0:05:00]} Bxe3 {[%emt 0:01:29]} 28. Rxe3 {[%emt 0:00:06]} Qc5 {[%emt 0:00:39]} (28... Nf6 $11) 29. Nh4 $14 {[%emt 0:04:23]} Nf6 {[%emt 0:02:39]} 30. Nf5 {[%emt 0:02:35]} Bxf5 {[%emt 0:06:52]} 31. exf5 {[%emt 0:00:02]} Rd8 {[%emt 0:02:43]} 32. g4 {[%emt 0:00:49][%cal Bg2g4,Bg4g5][%mdl 32]} Rd7 {[%emt 0:12:18]} (32... d5 $14) 33. Qe2 $18 {[%emt 0:04:11]} Qc7 {[%emt 0:04:34] [#]} (33... d5 $142) 34. h4 $1 {[%emt 0:00:37] Black is weak on the light squares} Qd8 {[%emt 0:01:46]} 35. g5 {[%emt 0:04:17]} Nh7 {[%emt 0:01:55]} 36. f4 {[%emt 0:04:42]} f6 {[%emt 0:02:25]} (36... Ra8 $142) 37. g6 {[%emt 0:03:23]} Nf8 {[%emt 0:00:09] [#]} 38. Be4 $1 {[%emt 0:03:14][%cal Oc4c5] aiming for c5!} Qb6 {[%emt 0:02:19]} 39. Kh2 {[%emt 0:00:32] Threatens to win with fxe5.} Rd8 $2 {[%emt 0:02:12]} (39... Raa7 40. Red3 a4 41. fxe5 dxe5 42. bxa4 Qc7 43. Rxd7 Nxd7) 40. fxe5 {[%emt 0:01:33]} fxe5 {[%emt 0:00:19] [#]} 41. f6 $1 {[%emt 0:00:38][%mdl 512]} Ra7 {[%emt 0:06:33]} (41... d5 42. Bxd5+) 42. f7+ {[%emt 0:02:55]} Kh8 {[%emt 0:00:06]} 43. Rg3 {[%emt 0:04:26] Qd2 would be deadly.} a4 {[%emt 0:00:44]} (43... Ne6 $142 44. Rf1 Rf8) 44. Rf1 {[%emt 0:02:04] Qh5 would kill now.} axb3 {[%emt 0:00:32]} 45. Qh5 {[%emt 0:00:35]} Rxa2+ {[%emt 0:02:23]} 46. Kh3 {[%emt 0:00:11] Weighted Error Value: White=0.13 (very precise) /Black=0.56} 1-0

[Event "SixDays Budapest March GM-B 2023"]
[Site "Budapest"]
[Date "2023.03.26"]
[Round "4.5"]
[White "Swayams, Mishra"]
[Black "Ilincic, Zlatko"]
[Result "1-0"]
[ECO "C42"]
[WhiteElo "2489"]
[BlackElo "2302"]
[Annotator "TA"]
[PlyCount "133"]
[EventDate "2023.03.24"]
[EventType "tourn"]
[EventCountry "HUN"]
[SourceTitle "playchess.com"]
[Source "ChessBase"]
[SourceQuality "1"]
[TimeControl "5400+30"]

{[%evp 19,133,26,29,33,36,10,0,0,8,0,60,59,53,60,50,47,172,118,116,134,129,119,129,125,191,77,125,97,95,87,106,106,122,125,151,155,149,150,155,149,156,145,151,155,148,149,188,187,199,180,181,135,172,157,175,169,164,161,175,163,172,136,147,139,310,306,398,369,394,393,382,372,389,369,388,465,460,460,422,430,460,336,335,328,327,320,291,253,707,714,806,714,707,700,693,679,693,672,619,602,29959,29962,29939,12618,4185,3753,1801,1335,29973,29973,29974,29975,29979,29980,29975,93]} 1. e4 {[%emt 0:13:49]} e5 {[%emt 0:00:46]} 2. Nf3 {[%emt 0:00:22]} Nf6 {[%emt 0:00:10]} 3. Nxe5 {[%emt 0:00:21]} d6 {[%emt 0:00:13][%cal Bd7d6,Bd6d5][%mdl 32]} 4. Nf3 {[%emt 0:00:05]} Nxe4 {[%emt 0:00:08]} 5. d4 {[%emt 0:00:13]} d5 {[%emt 0:00:12]} 6. Bd3 {[%emt 0:00:05]} Nf6 {[%emt 0:00:18]} 7. O-O {[%emt 0:00:20]} Be7 {[%emt 0:00:19]} 8. c4 {[%emt 0:06:52]} O-O {[%emt 0:00:10]} 9. Nc3 {[%emt 0:00:05]} dxc4 {[%emt 0:02:44]} 10. Bxc4 {[%emt 0:00:01]} Nbd7 {[%emt 0:00:12]} 11. Bb3 {[%emt 0:02:01] C42: Petroff Defence: 3 Nxe5 and unusual White 3rd moves.} c6 {[%emt 0:01:14]} 12. Be3 {[%emt 0:00:37]} Nb6 {[%emt 0:01:33]} 13. Ne5 {[%emt 0:00:03] [#] The position is equal.} Nfd5 $146 {[%emt 0:00:37]} ({Predecessor:} 13... Nbd5 14. Bg5 Be6 15. Bc2 h6 16. Bh4 Re8 17. a3 Nf4 18. Qd2 N6d5 19. Bg3 Bg5 20. Qd1 Bf6 21. Nxd5 Nxd5 {0-1 Keser,M (1855)-Diri,R (1917) Troya op 23rd 2015 (3)}) 14. Qf3 {[%emt 0:01:05]} f6 {[%emt 0:02:26]} (14... a5 $11) 15. Nd3 $1 $14 {[%emt 0:01:13]} Be6 {[%emt 0:04:25]} 16. Nc5 {[%emt 0:02:00]} Qc8 {[%emt 0:00:30]} 17. Qe4 {[%emt 0:11:50]} Kf7 {[%emt 0:10:50]} (17... Bxc5 $14 18. dxc5 Re8) 18. Nxe6 {[%emt 0:07:41]} ({Don't take} 18. Qxh7 Rh8 19. Qe4 Bxc5 20. dxc5 Nxc3 21. bxc3 Bxb3 22. axb3 Nd5 $16) (18. Rfe1 $18 Re8 19. Nxe6 (19. Qxh7 Rh8 $18) 19... Qxe6 20. Qxh7) 18... Qxe6 $16 {[%emt 0:00:36]} 19. Qxh7 {[%emt 0:00:04]} Rh8 {[%emt 0:01:13]} 20. Qe4 {[%emt 0:00:25]} Bd6 {[%emt 0:00:44]} 21. h3 {[%emt 0:01:32]} Rae8 {[%emt 0:02:35] [#]} (21... a5 $16) 22. Qxe6+ {[%emt 0:00:11]} (22. Qf3 $1 $18 {is the precise move to win.}) 22... Rxe6 {[%emt 0:00:26]} ({Better is} 22... Kxe6 23. Ne4 Kd7 24. Nxd6 Kxd6) 23. Rfe1 {[%emt 0:01:17]} Rh4 {[%emt 0:04:23]} 24. Re2 {[%emt 0:07:41]} Re7 {[%emt 0:09:46]} 25. f3 {[%emt 0:08:29]} Bg3 {[%emt 0:17:23]} 26. Ne4 {[%emt 0:01:23]} Rhxe4 {[%emt 0:00:20]} 27. fxe4 {[%emt 0:00:05]} Rxe4 {[%emt 0:00:08]} 28. Kf1 {[%emt 0:01:43]} Kf8 {[%emt 0:00:16]} 29. Bf2 {[%emt 0:01:07]} Rf4 {[%emt 0:00:19]} 30. Rae1 {[%emt 0:02:14] Black must now prevent Re8+.} Bxf2 {[%emt 0:00:54]} 31. Rxf2 {[%emt 0:00:02]} Rxd4 {[%emt 0:00:09]} 32. Rfe2 {[%emt 0:00:17] Re8+ would be deadly.} Nc4 {[%emt 0:00:15]} 33. Bxc4 {[%emt 0:01:28]} Rxc4 $18 {[%emt 0:00:06][%mdl 4096] Endgame KRR-KRN} 34. b3 {[%emt 0:01:00]} Rb4 {[%emt 0:00:11]} 35. Re4 {[%emt 0:04:24]} ({White should play} 35. Re8+ $18 Kf7 36. Rd8) 35... Rb5 {[%emt 0:01:17]} 36. Re8+ {[%emt 0:00:06]} Kf7 {[%emt 0:00:05]} 37. Rd8 {[%emt 0:00:10]} Nb6 {[%emt 0:06:56]} 38. Re4 {[%emt 0:02:18]} a5 {[%emt 0:00:22]} 39. Kf2 {[%emt 0:01:22]} f5 {[%emt 0:03:52]} 40. Rh4 {[%emt 0:03:13]} Ke7 {[%emt 0:01:58]} 41. Rhh8 {[%emt 0:00:41] Rde8+ is the strong threat. White is more active.} a4 $2 {[%emt 0:00:16]} (41... Nd7 $16 42. Rdg8 Kf7) 42. Rde8+ {[%emt 0:00:12]} Kd6 {[%emt 0:02:46]} 43. Rhg8 {[%emt 0:05:48]} axb3 {[%emt 0:02:55]} 44. axb3 {[%emt 0:00:00]} (44. Rxg7 bxa2 45. Re1 Rb1 46. Rxb7 Rxe1 47. Kxe1 a1=Q+ $19) 44... Rxb3 {[%emt 0:00:38]} 45. Rxg7 {[%emt 0:00:22]} Nd5 {[%emt 0:00:17]} 46. h4 {[%emt 0:00:39][%cal Bh3h4,Bh4h5][%mdl 32]} Nf4 {[%emt 0:01:22]} 47. g3 {[%emt 0:00:47]} Nd3+ {[%emt 0:00:14]} 48. Ke2 {[%emt 0:01:07]} Ne5 {[%emt 0:00:31]} 49. h5 {[%emt 0:00:35]} Ng4 {[%emt 0:09:08]} 50. Rf8 {[%emt 0:02:34]} Ke6 {[%emt 0:03:05]} 51. Rg6+ {[%emt 0:00:55]} Ke5 {[%emt 0:00:12]} 52. Re8+ {[%emt 0:02:17]} Kd4 {[%emt 0:01:07] [#]} 53. Rd8+ $1 {[%emt 0:00:38]} ({Less strong is} 53. h6 Rb2+ 54. Kf1 Nh2+ 55. Ke1 Nf3+ 56. Kd1 Rd2+ 57. Kc1 Rh2 $16) 53... Ke5 $2 {[%emt 0:00:11]} (53... Kc4 54. h6 Rb2+ 55. Rd2 Rb1) 54. h6 {[%emt 0:01:57]} Nxh6 {[%emt 0:02:22]} 55. Rxh6 {[%emt 0:01:07]} Rxg3 {[%emt 0:00:07]} 56. Rh7 {[%emt 0:00:47]} Rb3 {[%emt 0:00:54]} 57. Re7+ {[%emt 0:00:17]} Kf4 {[%emt 0:00:05]} 58. Rd4+ {[%emt 0:00:16]} Kg5 {[%emt 0:00:05]} 59. Rc7 {[%emt 0:00:06]} f4 {[%emt 0:01:08]} 60. Rf7 {[%emt 0:02:02]} Rb2+ {[%emt 0:00:14]} 61. Kd3 {[%emt 0:00:20]} (61. Ke1 $142 Rb1+ 62. Kd2 Rb2+ 63. Kd3 Rf2 64. Ke4 Re2+ 65. Kf3 Re3+ 66. Kf2) 61... Rb3+ {[%emt 0:00:43]} 62. Kc2 {[%emt 0:01:06]} Rf3 {[%emt 0:00:08]} 63. Rxb7 {[%emt 0:00:36] Threatening mate with Rf7.} Rf1 {[%emt 0:00:11]} 64. Rf7 {[%emt 0:00:54] White mates.} Kg4 {[%emt 0:00:29]} 65. Kd2 {[%emt 0:00:06]} Kg3 {[%emt 0:01:13]} 66. Rg7+ {[%emt 0:00:05]} Kf3 {[%emt 0:00:24] [#]} 67. Rxf4+ $3 {[%emt 0:00:10][%mdl 512] Weighted Error Value: White=0.13 (very precise) /Black=0.36} 1-0